bitfinex/quotes_SOLUSD_20240811
["timestamp","ask_amount","ask_price","bid_price","bid_amount"]
[1723375009170,0.25098,154.29,154.25,0.1]
[1723375009371,0.25098,154.28,154.25,0.1]
[1723375011192,0.12549,154.29,154.25,0.1]
[1723375011499,1.62085796,154.35,154.25,0.1]
[1723375011693,0.50196,154.34,154.25,0.1]
[1723375011900,0.12549,154.32,154.25,0.1]
[1723375012195,2.12266911,154.32,154.25,0.1]
[1723375012399,22.12266911,154.32,154.25,0.1]
[1723375012601,0.12549,154.3,154.25,0.1]
[1723375012777,2.12271291,154.3,154.25,0.1]
[1723375012970,0.50196,154.3,154.25,0.1]
[1723375013992,1.62074584,154.29,154.25,0.1]
[1723375014289,0.50196,154.3,154.25,0.1]
[1723375014681,2.12270602,154.3,154.25,0.1]
[1723375014879,0.50196,154.3,154.25,0.1]
[1723375015403,0.12549,154.28,154.25,0.1]
[1723375015718,0.37647,154.28,154.25,0.1]
[1723375016302,0.12549,154.28,154.25,0.1]
[1723375016605,0.12549,154.3,154.25,0.1]
[1723375016778,0.37647,154.3,154.25,0.1]
[1723375016975,1.99716518,154.3,154.25,0.1]
[1723375017181,0.12549,154.29,154.25,0.1]
[1723375017393,0.37647,154.29,154.25,0.1]
[1723375017701,0.12549,154.28,154.25,0.1]
[1723375017912,20.0,154.43,154.25,0.1]
[1723375018080,1.6204801,154.37,154.25,0.1]
[1723375018402,1.62015303,154.36,154.26,6.5915]
[1723375018706,1.62026726,154.35,154.26,6.5915]
[1723375019286,0.25098,154.34,154.26,6.5915]
[1723375019484,0.25098,154.33,154.26,6.5915]
[1723375019684,0.25098,154.32,154.26,6.5915]
[1723375019886,0.25098,154.32,154.25,0.1]
[1723375019887,0.12549,154.3,154.25,0.1]
[1723375020095,1.87177335,154.3,154.25,0.1]
[1723375020295,0.25098,154.29,154.25,0.1]
[1723375020528,0.25098,154.3,154.25,0.1]
[1723375021006,0.12549,154.29,154.23,12.6599]
[1723375021217,1.99724662,154.29,154.23,12.6599]
[1723375021819,0.12549,154.28,154.23,12.6599]
[1723375021999,1.74636747,154.28,154.23,12.6599]
[1723375022320,0.12549,154.27,154.23,12.6599]
[1723375022907,0.25098,154.27,154.23,12.6599]
[1723375023830,0.12549,154.26,154.23,12.6599]
[1723375024028,1.99751874,154.26,154.2,16.0599]
[1723375024211,1.99751874,154.26,154.18,6.5915]
[1723375024526,0.12549,154.25,154.16,16.0599]
[1723375024696,0.12549,154.23,154.16,16.0599]
[1723375025301,1.87244599,154.23,154.16,16.0599]
[1723375025508,0.12549,154.21,154.16,14.5599]
[1723375025707,0.25098,154.23,154.16,14.0599]
[1723375025917,0.37647,154.22,154.16,14.0599]
[1723375026290,0.12549,154.21,154.16,14.0599]
[1723375026494,1.74719177,154.21,154.16,14.0599]
[1723375026695,0.37647,154.2,154.16,14.0599]
[1723375026927,0.12549,154.19,154.16,14.0599]
[1723375027608,0.25098,154.19,154.14,6.5915]
[1723375027808,0.37647,154.18,154.12,6.72244475]
[1723375028006,0.12549,154.17,154.12,6.72244475]
[1723375028206,1.74742532,154.17,154.12,6.72244475]
[1723375028793,1.74742532,154.17,154.11,15.482]
[1723375028794,0.12549,154.16,154.11,15.482]
[1723375029021,0.25098,154.16,154.11,15.482]
[1723375029219,0.12549,154.17,154.1,0.8368772]
[1723375029410,0.12549,154.16,154.1,0.8368772]
[1723375029610,1.87318112,154.16,154.1,0.8368772]
[1723375029812,0.25098,154.15,154.1,0.8368772]
[1723375030429,0.12549,154.14,154.1,0.8368772]
[1723375030633,1.87345695,154.14,154.1,0.8368772]
[1723375030930,0.12549,154.12,154.1,0.8368772]
[1723375031125,1.74844038,154.12,154.1,0.8368772]
[1723375031327,0.37647,154.11,154.1,0.8368772]
[1723375031529,0.50196,154.11,154.1,0.8368772]
[1723375033010,20.50196,154.11,154.1,0.8368772]
[1723375033211,67.12477816,154.11,154.1,0.8368772]
[1723375033618,65.50196,154.11,154.1,0.8368772]
[1723375034812,0.25098,154.11,154.1,0.8368772]
[1723375035335,1.62277222,154.15,154.1,0.8368772]
[1723375035631,1.62270197,154.15,154.1,0.8368772]
[1723375035832,6.4195,154.17,154.1,0.8368772]
[1723375036038,8.04195111,154.17,154.1,0.8368772]
[1723375037035,6.4195,154.21,154.1,0.8368772]
[1723375037418,1.62207674,154.2,154.1,0.8368772]
[1723375037621,8.04158318,154.21,154.1,0.8368772]
[1723375037830,24.54619136,154.24,154.1,0.8368772]
[1723375038128,1.62194873,154.22,154.1,0.8368772]
[1723375038344,1.62179417,154.23,154.1,0.8368772]
[1723375039315,10.35078553,154.23,154.1,0.8368772]
[1723375039949,20.0,154.22,154.1,0.8368772]
[1723375040121,0.12549,154.2,154.1,0.8368772]
[1723375040315,1.99894109,154.2,154.1,0.8368772]
[1723375040516,0.12549,154.19,154.1,0.8368772]
[1723375040713,0.12549,154.17,154.1,0.8368772]
[1723375040917,0.50196,154.17,154.1,0.8368772]
[1723375041215,47.1242258,154.17,154.1,0.8368772]
[1723375041749,0.12549,154.15,154.1,0.8368772]
[1723375041916,45.50196,154.15,154.1,0.8368772]
[1723375042247,0.12549,154.13,154.1,0.8368772]
[1723375042447,0.12549,154.15,154.1,0.8368772]
[1723375043917,0.25098,154.15,154.1,0.8368772]
[1723375044119,0.12549,154.13,154.1,0.8368772]
[1723375044450,0.25098,154.14,154.1,16.3188772]
[1723375044655,46.87330281,154.14,154.1,16.3188772]
[1723375044848,20.25098,154.15,154.1,16.3188772]
[1723375044849,20.0,154.15,154.1,16.3188772]
[1723375045157,10.79294019,154.26,154.1,16.3188772]
[1723375045158,20.0,154.19,154.1,16.3188772]
[1723375045653,1.62189763,154.18,154.1,16.3188772]
[1723375045841,1.62195408,154.22,154.1,16.3188772]
[1723375047364,0.50196,154.21,154.1,16.3188772]
[1723375047539,0.12549,154.19,154.1,16.3188772]
[1723375047740,0.50196,154.19,154.1,16.3188772]
[1723375048048,0.12549,154.17,154.1,16.3188772]
[1723375048356,0.50196,154.17,154.1,16.3188772]
[1723375048540,2.12424897,154.17,154.1,16.3188772]
[1723375049243,0.50196,154.17,154.1,16.3188772]
[1723375051743,20.0,154.21,154.1,16.3188772]
[1723375053362,45.25098,154.2,154.1,16.3188772]
[1723375053564,0.12549,154.19,154.1,16.3188772]
[1723375053864,0.12549,154.18,154.1,16.3188772]
[1723375054068,45.37647,154.18,154.1,16.3188772]
[1723375054838,40.37647,154.18,154.1,16.3188772]
[1723375055240,20.12549,154.19,154.1,16.3188772]
[1723375055439,20.0,154.21,154.1,16.3188772]
[1723375055640,1.62180068,154.25,154.1,16.3188772]
[1723375056559,8.1291146,154.26,154.12,16.5019]
[1723375056869,6.99956767,154.26,154.12,16.5019]
[1723375057044,8.6209782,154.26,154.12,16.5019]
[1723375057375,10.35040561,154.27,154.13,23.1519]
[1723375057544,1.62141425,154.25,154.13,23.1519]
[1723375058671,0.25098,154.24,154.13,23.1519]
[1723375058969,0.37647,154.23,154.13,23.1519]
[1723375059272,1.8725215,154.22,154.13,23.1519]
[1723375059450,0.37647,154.21,154.13,23.1519]
[1723375059642,0.12549,154.2,154.13,23.1519]
[1723375059841,0.12549,154.19,154.13,23.1519]
[1723375060037,0.37647,154.19,154.13,23.1519]
[1723375060265,0.12549,154.18,154.13,23.1519]
[1723375060840,0.12549,154.19,154.13,23.1519]
[1723375061244,20.0,154.23,154.13,23.1519]
[1723375061564,1.62155152,154.28,154.13,23.1519]
[1723375061868,8.58107161,154.28,154.13,23.1519]
[1723375062243,8.58107161,154.28,154.14,16.5019]
[1723375062448,8.58107161,154.28,154.17,16.5019]
[1723375062854,10.34986985,154.32,154.17,16.5019]
[1723375063379,1.62087849,154.32,154.18,6.65]
[1723375063587,1.62066307,154.35,154.21,16.5019]
[1723375064646,1.62039443,154.35,154.23,16.5019]
[1723375064865,8.34625967,154.38,154.23,16.5019]
[1723375065083,8.34625967,154.38,154.24,6.65]
[1723375065790,20.0,154.37,154.24,6.65]
[1723375065974,1.62037255,154.36,154.24,6.65]
[1723375066280,1.62036108,154.35,154.24,6.65]
[1723375067083,21.62036108,154.35,154.24,6.65]
[1723375067284,29.48268578,154.35,154.23,16.5019]
[1723375067596,0.12549,154.32,154.23,16.5019]
[1723375067894,67.12306117,154.32,154.23,16.5019]
[1723375068095,83.72586117,154.32,154.2,6.0785]
[1723375068765,90.03538126,154.32,154.2,6.0785]
[1723375069385,97.89770596,154.32,154.2,6.0785]
[1723375069582,100.0151734,154.32,154.2,6.0785]
[1723375069782,100.0151734,154.32,154.19,15.0575]
[1723375069783,0.12549,154.3,154.19,15.0575]
[1723375069990,66.99795868,154.3,154.19,15.0575]
[1723375070160,67.12344868,154.3,154.19,15.0575]
[1723375070992,47.12344868,154.3,154.19,15.0575]
[1723375071192,1.62148868,154.3,154.19,15.0575]
[1723375071792,1.62106597,154.32,154.19,15.0575]
[1723375073306,1.62106597,154.32,154.2,6.0785]
[1723375074091,1.62106597,154.32,154.21,15.0575]
[1723375074271,9.48294875,154.35,154.21,15.0575]
[1723375074466,1.62062405,154.35,154.24,15.0575]
[1723375075179,6.72264971,154.34,154.24,15.0575]
[1723375075382,1.62071939,154.33,154.24,15.0575]
[1723375075583,1.62079468,154.32,154.24,15.0575]
[1723375075894,1.62079384,154.33,154.24,15.0575]
[1723375076201,1.87167043,154.32,154.24,15.0575]
[1723375076398,0.12549,154.31,154.24,15.0575]
[1723375076979,0.25098,154.31,154.24,15.0575]
[1723375077406,45.0,154.33,154.24,15.0575]
[1723375077407,1.62065629,154.38,154.25,6.0785]
[1723375078289,21.62065629,154.38,154.25,6.0785]
[1723375078811,45.37647,154.37,154.25,6.0785]
[1723375078982,0.12549,154.35,154.25,6.0785]
[1723375079181,46.99704588,154.35,154.25,6.0785]
[1723375079486,20.12549,154.34,154.25,6.0785]
[1723375079687,45.37647,154.33,154.25,6.0785]
[1723375079880,0.12549,154.32,154.25,6.0785]
[1723375080188,0.12549,154.31,154.25,6.0785]
[1723375080404,45.25098,154.31,154.25,6.0785]
[1723375080609,0.12549,154.29,154.25,6.0785]
[1723375080903,45.25098,154.29,154.25,6.0785]
[1723375081105,45.0,154.29,154.25,6.0785]
[1723375081307,1.62067754,154.28,154.25,6.0785]
[1723375081779,45.0,154.29,154.25,6.0785]
[1723375082794,0.25098,154.28,154.25,6.0785]
[1723375083087,1.99727118,154.28,154.25,6.0785]
[1723375083291,0.12549,154.27,154.25,6.0785]
[1723375084495,0.12549,154.27,154.21,6.0785]
[1723375085498,0.37647,154.28,154.21,6.0785]
[1723375085878,0.12549,154.27,154.21,6.0785]
[1723375086105,0.37647,154.28,154.21,6.0785]
[1723375086310,1.99734212,154.28,154.21,6.0785]
[1723375086701,0.37647,154.28,154.21,6.0785]
[1723375086892,0.37647,154.28,154.22,15.1135]
[1723375087095,1.62087279,154.37,154.22,15.1135]
[1723375087301,1.62053598,154.35,154.22,15.1135]
[1723375088298,0.25098,154.34,154.22,15.1135]
[1723375088607,0.25098,154.33,154.22,15.1135]
[1723375088916,0.25098,154.32,154.22,15.1135]
[1723375089206,0.12549,154.3,154.22,15.1135]
[1723375089398,0.25098,154.3,154.22,15.1135]
[1723375090705,0.25098,154.31,154.23,6.2922]
[1723375090905,20.0,154.36,154.24,15.1135]
[1723375091118,1.62036783,154.35,154.24,15.1135]
[1723375091995,20.0,154.36,154.24,15.1135]
[1723375092612,1.62037151,154.35,154.24,15.1135]
[1723375092791,1.62047653,154.37,154.24,15.1135]
[1723375093323,0.25098,154.36,154.24,15.1135]
[1723375093500,0.12549,154.34,154.24,15.1135]
[1723375093698,0.37647,154.34,154.24,15.1135]
[1723375093898,0.12549,154.33,154.24,15.1135]
[1723375094102,0.12549,154.32,154.24,15.1135]
[1723375094295,0.25098,154.32,154.24,15.1135]
[1723375094905,1.87136333,154.32,154.24,15.1135]
[1723375095117,0.25098,154.31,154.24,15.1135]
[1723375097016,20.0,154.34,154.24,15.1135]
[1723375097218,1.62051146,154.38,154.24,15.1135]
[1723375097401,1.62017498,154.37,154.24,15.1135]
[1723375097898,1.62050694,154.38,154.24,15.1135]
[1723375098501,21.62027525,154.39,154.26,15.1135]
[1723375099020,1.62027525,154.39,154.26,15.1135]
[1723375099191,1.62027525,154.39,154.27,6.2922]
[1723375099391,6.3334,154.38,154.26,15.1135]
[1723375099618,1.62077214,154.37,154.26,15.1135]
[1723375099800,7.93029223,154.37,154.26,15.1135]
[1723375100010,28.04132501,154.37,154.26,15.1135]
[1723375100202,26.30952009,154.36,154.26,15.1135]
[1723375100403,0.12549,154.34,154.26,15.1135]
[1723375100600,0.12549,154.32,154.26,15.1135]
[1723375101009,1.74626077,154.32,154.26,15.1135]
[1723375101319,0.12549,154.3,154.26,15.1135]
[1723375101690,21.74630242,154.3,154.26,15.1135]
[1723375101913,0.12549,154.28,154.26,15.1135]
[1723375102510,1.74632261,154.28,154.22,15.1135]
[1723375102713,0.12549,154.26,154.22,15.1135]
[1723375102923,1.74675355,154.26,154.19,6.2922]
[1723375103107,0.12549,154.24,154.19,6.2922]
[1723375103318,1.74693693,154.24,154.18,15.1135]
[1723375103628,1.74693693,154.24,154.15,6.2922]
[1723375103629,0.12549,154.22,154.15,6.2922]
[1723375104116,20.12549,154.22,154.15,6.2922]
[1723375104321,0.12549,154.2,154.15,6.2922]
[1723375104504,20.12549,154.2,154.15,6.2922]
[1723375104914,1.62162556,154.29,154.15,6.2922]
[1723375105127,21.62162556,154.29,154.15,6.2922]
[1723375105328,1.6212325,154.29,154.15,6.2922]
[1723375105528,21.6212325,154.29,154.15,6.2922]
[1723375106623,0.25098,154.28,154.15,6.2922]
[1723375106814,0.25098,154.27,154.15,6.2922]
[1723375107015,20.0,154.29,154.16,15.8913]
[1723375107323,1.62074264,154.29,154.16,15.8913]
[1723375107532,1.62080784,154.33,154.16,15.8913]
[1723375107840,9.59649161,154.32,154.16,15.8913]
[1723375108320,45.12549,154.31,154.16,15.8913]
[1723375108929,7.97550808,154.32,154.17,20.0]
[1723375109118,7.97550808,154.32,154.18,6.6047]
[1723375109827,1.6209593,154.33,154.18,6.6047]
[1723375109828,11.68476799,154.34,154.19,15.8913]
[1723375110128,0.12549,154.34,154.19,15.8913]
[1723375110434,0.12549,154.32,154.19,15.8913]
[1723375110742,1.99719582,154.32,154.19,15.8913]
[1723375111503,0.12549,154.31,154.19,15.8913]
[1723375111698,0.12549,154.3,154.19,15.8913]
[1723375111925,1.99746395,154.3,154.19,15.8913]
[1723375112211,0.12549,154.29,154.19,15.8913]
[1723375112417,0.12549,154.28,154.19,15.8913]
[1723375112605,0.12549,154.26,154.11,22.496]
[1723375113028,0.25098,154.26,154.11,22.496]
[1723375113222,0.12549,154.24,154.11,22.496]
[1723375113429,0.25098,154.24,154.11,22.496]
[1723375113622,0.25098,154.23,154.11,22.496]
[1723375113829,0.25098,154.22,154.11,22.496]
[1723375114007,0.12549,154.2,154.11,22.496]
[1723375114210,0.25098,154.2,154.11,22.496]
[1723375114934,0.25098,154.19,154.11,22.496]
[1723375115724,20.0,154.22,154.11,22.496]
[1723375116024,20.0,154.27,154.11,22.496]
[1723375116225,1.6216411,154.26,154.11,22.496]
[1723375116933,0.25098,154.25,154.11,22.496]
[1723375117112,0.12549,154.23,154.11,22.496]
[1723375117313,0.25098,154.23,154.11,22.496]
[1723375117508,0.25098,154.22,154.11,22.496]
[1723375117711,0.25098,154.21,154.11,22.496]
[1723375118020,0.25098,154.2,154.11,22.496]
[1723375119642,20.0,154.23,154.12,15.8913]
[1723375119808,20.0,154.27,154.12,15.8913]
[1723375120015,1.62154016,154.26,154.12,15.8913]
[1723375120916,0.50196,154.25,154.12,15.8913]
[1723375121126,0.12549,154.23,154.12,15.8913]
[1723375121330,2.12385742,154.23,154.12,15.8913]
[1723375121631,22.12385742,154.23,154.12,15.8913]
[1723375121932,0.12549,154.21,154.12,15.8913]
[1723375122114,20.50196,154.21,154.12,15.8913]
[1723375122310,0.12549,154.19,154.12,15.8913]
[1723375122510,0.50196,154.19,154.12,15.8913]
[1723375125255,0.12549,154.17,154.12,15.8913]
[1723375125417,0.50196,154.17,154.12,15.8913]
[1723375125618,2.12391941,154.17,154.12,15.8913]
[1723375126017,0.50196,154.17,154.12,15.8913]
[1723375126215,20.50196,154.17,154.12,15.8913]
[1723375126435,0.12549,154.15,154.12,15.8913]
[1723375126624,0.50196,154.15,154.12,15.8913]
[1723375127620,0.50196,154.15,154.1,0.8368772]
[1723375127829,0.12549,154.13,154.1,0.8368772]
[1723375128216,0.50196,154.13,154.1,0.8368772]
[1723375131738,45.0,154.14,154.1,0.8368772]
[1723375132056,1.62242135,154.2,154.1,0.8368772]
[1723375132222,21.62242135,154.2,154.1,0.8368772]
[1723375132644,7.1767303,154.21,154.1,0.8368772]
[1723375133022,1.62199443,154.2,154.1,0.8368772]
[1723375133518,8.79887864,154.21,154.1,0.8368772]
[1723375133718,9.97243384,154.23,154.1,0.8368772]
[1723375133923,1.62200186,154.23,154.12,6.6581]
[1723375134746,6.30952009,154.24,154.12,6.6581]
[1723375134937,11.43997022,154.25,154.12,6.6581]
[1723375135125,20.0,154.24,154.12,6.6581]
[1723375135321,1.6217002,154.23,154.12,6.6581]
[1723375135633,21.62174284,154.24,154.12,6.6581]
[1723375136345,45.25098,154.23,154.12,6.6581]
[1723375136645,7.1767303,154.25,154.13,16.2098]
[1723375136818,1.62148367,154.26,154.13,16.2098]
[1723375137018,9.97189949,154.27,154.13,16.2098]
[1723375137237,1.62146751,154.26,154.13,16.2098]
[1723375137622,8.79819781,154.26,154.13,16.2098]
[1723375138240,45.25098,154.25,154.13,16.2098]
[1723375138445,0.12549,154.23,154.13,16.2098]
[1723375138642,1.9981748,154.23,154.13,16.2098]
[1723375138853,0.12549,154.22,154.13,16.2098]
[1723375139027,0.50196,154.22,154.13,16.2098]
[1723375139342,1.62170438,154.21,154.13,16.2098]
[1723375139648,0.37647,154.22,154.13,16.2098]
[1723375139821,0.12549,154.21,154.13,16.2098]
[1723375140247,0.12549,154.22,154.13,16.2098]
[1723375140548,0.12549,154.21,154.13,16.2098]
[1723375140741,0.25098,154.21,154.13,16.2098]
[1723375141434,0.12549,154.2,154.13,16.2098]
[1723375141637,0.37647,154.2,154.13,16.2098]
[1723375141966,8.35043198,154.28,154.15,16.2098]
[1723375142129,1.62109018,154.3,154.17,16.2098]
[1723375142337,2.597711,154.28,154.17,16.2098]
[1723375142742,7.1767303,154.32,154.18,22.8679]
[1723375142948,8.79755873,154.32,154.18,22.8679]
[1723375143839,8.79755873,154.32,154.19,16.2098]
[1723375144254,15.34679754,154.32,154.19,16.2098]
[1723375145227,65.50196,154.31,154.19,16.2098]
[1723375145437,0.12549,154.29,154.19,16.2098]
[1723375145639,2.12315719,154.29,154.19,16.2098]
[1723375145827,20.0,154.31,154.19,16.2098]
[1723375146229,1.62078343,154.3,154.19,16.2098]
[1723375146428,20.0,154.31,154.19,16.2098]
[1723375146654,1.12893732,154.35,154.21,16.4826]
[1723375146854,7.1767303,154.37,154.21,16.4826]
[1723375146855,16.29627081,154.37,154.21,16.4826]
[1723375147024,27.97981445,154.37,154.21,16.4826]
[1723375147548,8.0087303,154.36,154.21,16.4826]
[1723375147738,1.62068008,154.35,154.21,16.4826]
[1723375147946,9.62941038,154.35,154.21,16.4826]
[1723375148133,45.37647,154.34,154.21,16.4826]
[1723375148330,0.12549,154.32,154.21,16.4826]
[1723375148564,0.12549,154.3,154.21,16.4826]
[1723375148742,46.99755579,154.3,154.21,16.4826]
[1723375148946,0.12549,154.28,154.21,16.4826]
[1723375149145,46.99768037,154.28,154.21,16.4826]
[1723375149337,0.12549,154.27,154.21,16.4826]
[1723375149534,0.12549,154.26,154.21,16.4826]
[1723375149740,0.25098,154.27,154.21,16.4826]
[1723375149741,0.12549,154.27,154.21,16.4826]
[1723375150046,1.74650731,154.27,154.21,16.4826]
[1723375150233,0.12549,154.27,154.21,16.4826]
[1723375151025,0.25098,154.27,154.21,16.4826]
[1723375151230,0.12549,154.25,154.21,16.4826]
[1723375151430,1.87219526,154.25,154.21,16.4826]
[1723375151654,0.12549,154.23,154.21,16.4826]
[1723375151872,0.37647,154.23,154.21,16.4826]
[1723375152033,0.12549,154.22,154.21,16.4826]
[1723375152232,0.50196,154.22,154.21,16.4826]
[1723375152859,0.12549,154.21,154.11,16.4826]
[1723375153048,1.99818057,154.21,154.16,6.3525]
[1723375153253,0.12549,154.2,154.16,6.3525]
[1723375153441,0.12549,154.19,154.16,6.3525]
[1723375153768,0.37647,154.19,154.16,6.3525]
[1723375153956,0.12549,154.18,154.16,6.3525]
[1723375154129,0.12549,154.17,154.16,6.3525]
[1723375154335,0.37647,154.17,154.12,6.3525]
[1723375154544,0.12549,154.16,154.12,6.3525]
[1723375154741,0.12549,154.15,154.12,6.3525]
[1723375154956,0.37647,154.15,154.12,6.3525]
[1723375155255,0.12549,154.14,154.12,6.3525]
[1723375155471,0.12549,154.13,154.12,6.3525]
[1723375155768,0.12549,154.13,154.11,16.4826]
[1723375155769,0.37647,154.13,154.11,16.4826]
[1723375156954,20.0,154.22,154.11,16.4826]
[1723375157257,21.62196288,154.22,154.11,16.4826]
[1723375158260,45.0,154.21,154.11,16.4826]
[1723375158458,20.0,154.2,154.11,16.4826]
[1723375158741,16.71810672,154.23,154.11,16.4826]
[1723375158946,9.63052598,154.23,154.11,16.4826]
[1723375159362,18.3399024,154.23,154.11,16.4826]
[1723375159960,16.71810672,154.23,154.11,16.4826]
[1723375160270,75.83359896,154.22,154.11,16.4826]
[1723375160445,8.0087303,154.21,154.11,16.4826]
[1723375160639,0.12549,154.19,154.11,16.4826]
[1723375161862,1.74760865,154.19,154.11,16.4826]
[1723375162163,0.12549,154.17,154.11,16.4826]
[1723375164170,0.12549,154.17,154.1,0.8368772]
[1723375164539,2.72544,154.17,154.1,0.8368772]
[1723375164743,0.12549,154.15,154.1,0.8368772]
[1723375165443,20.12549,154.15,154.1,0.8368772]
[1723375165644,45.37647,154.14,154.1,0.8368772]
[1723375165895,0.12549,154.14,154.1,0.8368772]
[1723375166068,0.12549,154.15,154.1,0.8368772]
[1723375166250,0.25098,154.15,154.1,0.8368772]
[1723375166446,0.12549,154.14,154.1,0.8368772]
[1723375167076,0.12549,154.15,154.1,0.8368772]
[1723375167245,20.12549,154.2,154.1,0.8368772]
[1723375167451,0.12549,154.18,154.1,0.8368772]
[1723375168398,0.25098,154.18,154.1,0.8368772]
[1723375168564,0.25098,154.17,154.1,0.8368772]
[1723375168746,0.25098,154.16,154.1,0.8368772]
[1723375168942,0.12549,154.14,154.1,0.8368772]
[1723375169443,20.0,154.16,154.1,0.8368772]
[1723375169666,20.0,154.19,154.1,0.8368772]
[1723375169953,21.6223032,154.19,154.1,0.8368772]
[1723375170163,29.6310335,154.19,154.1,0.8368772]
[1723375170475,28.0087303,154.19,154.1,0.8368772]
[1723375170781,45.12549,154.18,154.1,0.8368772]
[1723375170947,0.12549,154.16,154.1,0.8368772]
[1723375171155,8.70937642,154.22,154.1,0.8368772]
[1723375171565,8.0087303,154.22,154.11,16.5261]
[1723375171766,8.0087303,154.22,154.12,6.3351]
[1723375172070,1.6214675,154.21,154.12,6.3351]
[1723375172277,1.6215937,154.2,154.12,6.3351]
[1723375172672,8.0087303,154.22,154.12,6.3351]
[1723375173675,8.008731,154.24,154.12,6.3351]
[1723375173884,20.0,154.23,154.12,6.3351]
[1723375174483,1.62141819,154.22,154.12,6.3351]
[1723375174978,20.0,154.25,154.12,6.3351]
[1723375175159,8.0087303,154.26,154.13,36.5261]
[1723375175361,8.0087303,154.26,154.14,16.5261]
[1723375176665,8.0087303,154.26,154.15,6.3351]
[1723375177261,45.0,154.25,154.15,6.3351]
[1723375177755,0.50196,154.24,154.15,6.3351]
[1723375178666,0.12549,154.23,154.15,6.3351]
[1723375178870,1.74680333,154.23,154.15,6.3351]
[1723375179173,0.12549,154.21,154.15,6.3351]
[1723375179701,0.12549,154.22,154.15,6.3351]
[1723375179997,0.12549,154.24,154.15,6.3351]
[1723375180201,0.50196,154.24,154.15,6.3351]
[1723375182173,20.0,154.41,154.15,6.3351]
[1723375182174,8.0087303,154.3,154.17,16.5261]
[1723375182806,1.62099258,154.29,154.17,16.5261]
[1723375183097,9.62979494,154.3,154.17,16.5261]
[1723375183677,45.50196,154.29,154.17,16.5261]
[1723375183995,0.12549,154.27,154.17,16.5261]
[1723375184206,45.50196,154.27,154.17,16.5261]
[1723375184381,45.0,154.27,154.19,16.5261]
[1723375184577,8.70937642,154.35,154.19,16.5261]
[1723375184783,8.70937642,154.35,154.21,16.5261]
[1723375185302,8.70937642,154.35,154.23,15.1563]
[1723375185492,18.33852479,154.35,154.23,15.1563]
[1723375185699,8.0087303,154.34,154.23,15.1563]
[1723375185876,1.62053215,154.33,154.23,15.1563]
[1723375186070,1.62053185,154.32,154.23,15.1563]
[1723375186391,20.0,154.33,154.23,15.1563]
[1723375186871,1.62050439,154.32,154.23,15.1563]
[1723375187070,20.0,154.33,154.23,15.1563]
[1723375187270,1.6206864,154.32,154.23,15.1563]
[1723375187471,0.12549,154.31,154.23,15.1563]
[1723375187687,0.12549,154.32,154.23,15.1563]
[1723375187891,0.12549,154.31,154.23,15.1563]
[1723375188097,0.37647,154.31,154.23,15.1563]
[1723375188277,0.12549,154.3,154.23,15.1563]
[1723375188478,0.12549,154.29,154.23,15.1563]
[1723375188694,1.7460936,154.29,154.23,15.1563]
[1723375188893,0.12549,154.28,154.23,15.1563]
[1723375189104,1.99714478,154.29,154.23,15.1563]
[1723375189288,0.25098,154.28,154.23,15.1563]
[1723375189605,0.25098,154.27,154.23,15.1563]
[1723375190293,0.37647,154.26,154.23,15.1563]
[1723375190676,1.99745056,154.26,154.23,15.1563]
[1723375190894,0.25098,154.25,154.23,15.1563]
[1723375191094,0.37647,154.24,154.23,15.1563]
[1723375191381,0.12549,154.23,154.19,15.1563]
[1723375191593,0.37647,154.24,154.19,15.1563]
[1723375193483,0.12549,154.24,154.19,15.1563]
[1723375193691,21.6210999,154.31,154.19,15.1563]
[1723375193878,29.6298302,154.31,154.19,15.1563]
[1723375194887,0.25098,154.3,154.19,15.1563]
[1723375195083,0.12549,154.29,154.19,15.1563]
[1723375195583,0.12549,154.28,154.19,15.1563]